[Event "Titled Tuesday Blitz June 29 2021"]
[White "Fh2411"]
[Black "Kale36"]
[WhiteElo "2525"]
[BlackElo "2369"]
[Result "1-0"]
[Round "07"]
[TimeControl "180+1"]
[Date "2021.06.29"]
[WhiteClock "0:00:14"]
[BlackClock "0:00:28"]

1. d4 {[%clk 0:02:41]}  Nc6 {[%clk 0:02:57]} 2. Nf3 {[%clk 0:02:42]}  d6 {[%clk 0:02:57]} 3. Bf4 {[%clk 0:02:42]}  Bg4 {[%clk 0:02:57]} 4. Nbd2 {[%clk 0:02:41]}  f6 {[%clk 0:02:53]} 5. d5 {[%clk 0:02:38]}  Ne5 {[%clk 0:02:53]} 6. e3 {[%clk 0:02:33]}  Nxf3+ {[%clk 0:02:49]} 7. Nxf3 {[%clk 0:02:34]}  e5 {[%clk 0:02:49]} 8. dxe6 {[%clk 0:02:29]}  Bxe6 {[%clk 0:02:49]} 9. c3 {[%clk 0:02:25]}  Ne7 {[%clk 0:02:46]} 10. Nd4 {[%clk 0:02:20]}  Bd7 {[%clk 0:02:43]} 11. Qb3 {[%clk 0:02:19]}  Ng6 {[%clk 0:02:13]} 12. Bc4 {[%clk 0:01:52]}  Be7 {[%clk 0:01:45]} 13. Qxb7 {[%clk 0:01:27]}  Rb8 {[%clk 0:01:39]} 14. Qd5 {[%clk 0:01:27]}  Rf8 {[%clk 0:01:33]} 15. O-O-O {[%clk 0:01:18]}  Ne5 {[%clk 0:01:24]} 16. Bb3 {[%clk 0:01:07]}  c5 {[%clk 0:01:20]} 17. Ne6 {[%clk 0:00:56]}  Bxe6 {[%clk 0:01:17]} 18. Qxe6 {[%clk 0:00:57]}  Qc8 {[%clk 0:01:16]} 19. Rxd6 {[%clk 0:00:40]}  Qxe6 {[%clk 0:01:03]} 20. Rxe6 {[%clk 0:00:41]}  Rb6 {[%clk 0:00:43]} 21. Rd1 {[%clk 0:00:33]}  c4 {[%clk 0:00:42]} 22. Rxb6 {[%clk 0:00:22]}  axb6 {[%clk 0:00:43]} 23. Ba4+ {[%clk 0:00:19]}  Kf7 {[%clk 0:00:40]} 24. Bxe5 {[%clk 0:00:19]}  fxe5 {[%clk 0:00:40]} 25. Bb5 {[%clk 0:00:19]}  Rc8 {[%clk 0:00:38]} 26. Kc2 {[%clk 0:00:15]}  Ke6 {[%clk 0:00:34]} 27. Bd7+ {[%clk 0:00:13]}  Kf6 {[%clk 0:00:28]} 28. Bxc8 {[%clk 0:00:14]} 1-0


[Site "https://www.chess.com"]

[Event "Titled Tuesday Blitz June 29 2021"]
[White "Fighter008"]
[Black "Blitzking642"]
[WhiteElo "2658"]
[BlackElo "2468"]
[Result "1-0"]
[Round "07"]
[TimeControl "180+1"]
[Date "2021.06.29"]
[WhiteClock "0:02:16"]
[BlackClock "0:01:14"]

1. e4 {[%clk 0:02:48]}  c5 {[%clk 0:02:59]} 2. Nf3 {[%clk 0:02:46]}  Nc6 {[%clk 0:02:59]} 3. Bb5 {[%clk 0:02:45]}  g6 {[%clk 0:02:59]} 4. O-O {[%clk 0:02:45]}  Bg7 {[%clk 0:02:59]} 5. c3 {[%clk 0:02:45]}  Nf6 {[%clk 0:02:59]} 6. d4 {[%clk 0:02:45]}  cxd4 {[%clk 0:02:46]} 7. cxd4 {[%clk 0:02:46]}  Nxe4 {[%clk 0:02:47]} 8. d5 {[%clk 0:02:46]}  Nd6 {[%clk 0:02:47]} 9. Na3 {[%clk 0:02:45]}  Nb8 {[%clk 0:02:42]} 10. Re1 {[%clk 0:02:45]}  O-O {[%clk 0:02:36]} 11. Bg5 {[%clk 0:02:45]}  Re8 {[%clk 0:02:28]} 12. Qe2 {[%clk 0:02:38]}  Bf6 {[%clk 0:01:59]} 13. Bxf6 {[%clk 0:02:30]}  exf6 {[%clk 0:01:59]} 14. Qd2 {[%clk 0:02:31]}  a6 {[%clk 0:01:54]} 15. Bd3 {[%clk 0:02:28]}  b5 {[%clk 0:01:47]} 16. Qf4 {[%clk 0:02:27]}  Nc4 {[%clk 0:01:17]} 17. Bxc4 {[%clk 0:02:19]}  bxc4 {[%clk 0:01:18]} 18. Nxc4 {[%clk 0:02:20]}  Kg7 {[%clk 0:01:16]} 19. Nd6 {[%clk 0:02:15]}  Rxe1+ {[%clk 0:01:14]} 20. Rxe1 {[%clk 0:02:16]} 1-0


[Site "https://www.chess.com"]

[Event "Titled Tuesday Blitz June 29 2021"]
[White "Flopezin"]
[Black "zuma2910"]
[WhiteElo "2362"]
[BlackElo "2523"]
[Result "0-1"]
[Round "07"]
[TimeControl "180+1"]
[Date "2021.06.29"]
[WhiteClock "0:01:00"]
[BlackClock "0:00:58"]

1. c4 {[%clk 0:03:00]}  Nf6 {[%clk 0:02:59]} 2. Nc3 {[%clk 0:03:01]}  d5 {[%clk 0:02:59]} 3. cxd5 {[%clk 0:03:01]}  Nxd5 {[%clk 0:03:00]} 4. e4 {[%clk 0:03:01]}  Nb6 {[%clk 0:03:00]} 5. d4 {[%clk 0:03:01]}  g6 {[%clk 0:02:59]} 6. Nf3 {[%clk 0:03:01]}  Bg7 {[%clk 0:02:59]} 7. Be3 {[%clk 0:03:01]}  O-O {[%clk 0:03:00]} 8. Be2 {[%clk 0:03:00]}  Nc6 {[%clk 0:02:59]} 9. O-O {[%clk 0:02:58]}  Bg4 {[%clk 0:02:56]} 10. d5 {[%clk 0:02:57]}  Na5 {[%clk 0:02:55]} 11. Nd2 {[%clk 0:02:56]}  Bxe2 {[%clk 0:02:49]} 12. Qxe2 {[%clk 0:02:57]}  c6 {[%clk 0:02:50]} 13. Rac1 {[%clk 0:02:48]}  cxd5 {[%clk 0:02:46]} 14. Bxb6 {[%clk 0:02:45]}  axb6 {[%clk 0:02:45]} 15. Nxd5 {[%clk 0:02:40]}  Bxb2 {[%clk 0:02:31]} 16. Rb1 {[%clk 0:02:39]}  Bd4 {[%clk 0:02:29]} 17. Nc4 {[%clk 0:02:26]}  Nxc4 {[%clk 0:02:21]} 18. Qxc4 {[%clk 0:02:27]}  Bc5 {[%clk 0:02:17]} 19. Rfd1 {[%clk 0:02:26]}  Rc8 {[%clk 0:01:50]} 20. Nf6+ {[%clk 0:02:06]}  exf6 {[%clk 0:01:48]} 21. Rxd8 {[%clk 0:02:07]}  Bxf2+ {[%clk 0:01:37]} 22. Kxf2 {[%clk 0:02:08]}  Rxc4 {[%clk 0:01:38]} 23. Rxf8+ {[%clk 0:02:05]}  Kxf8 {[%clk 0:01:38]} 24. Rxb6 {[%clk 0:02:06]}  Rxe4 {[%clk 0:01:35]} 25. Rxb7 {[%clk 0:01:57]}  Ra4 {[%clk 0:01:35]} 26. Rb2 {[%clk 0:01:57]}  f5 {[%clk 0:01:36]} 27. Ke3 {[%clk 0:01:56]}  Ke7 {[%clk 0:01:31]} 28. Kd3 {[%clk 0:01:51]}  g5 {[%clk 0:01:28]} 29. Kc3 {[%clk 0:01:49]}  Ra8 {[%clk 0:01:27]} 30. Rf2 {[%clk 0:01:45]}  Ke6 {[%clk 0:01:23]} 31. Kb3 {[%clk 0:01:42]}  f4 {[%clk 0:01:23]} 32. a4 {[%clk 0:01:37]}  Kd5 {[%clk 0:01:20]} 33. Kb4 {[%clk 0:01:35]}  Rb8+ {[%clk 0:01:13]} 34. Ka5 {[%clk 0:01:31]}  f5 {[%clk 0:01:12]} 35. Ka6 {[%clk 0:01:29]}  Rb4 {[%clk 0:01:04]} 36. a5 {[%clk 0:01:29]}  g4 {[%clk 0:01:03]} 37. Ka7 {[%clk 0:01:24]}  Ke4 {[%clk 0:01:02]} 38. Re2+ {[%clk 0:01:16]}  Kd4 {[%clk 0:01:00]} 39. Rd2+ {[%clk 0:01:07]}  Ke3 {[%clk 0:01:00]} 40. Rd5 {[%clk 0:01:06]}  Ke4 {[%clk 0:00:57]} 41. Rd2 {[%clk 0:01:01]}  f3 {[%clk 0:00:57]} 42. gxf3+ {[%clk 0:01:00]}  gxf3 {[%clk 0:00:58]} 0-1


[Site "https://www.chess.com"]

[Event "Titled Tuesday Blitz June 29 2021"]
[White "GMG"]
[Black "Ajedrez_con_German"]
[WhiteElo "2634"]
[BlackElo "2505"]
[Result "1-0"]
[Round "07"]
[TimeControl "180+1"]
[Date "2021.06.29"]
[WhiteClock "0:00:10"]
[BlackClock "0:00:01"]

1. d4 {[%clk 0:03:00]}  d5 {[%clk 0:02:56]} 2. c4 {[%clk 0:03:00]}  c6 {[%clk 0:02:56]} 3. Nc3 {[%clk 0:02:58]}  Nf6 {[%clk 0:02:56]} 4. e3 {[%clk 0:02:57]}  a6 {[%clk 0:02:53]} 5. Bd3 {[%clk 0:02:56]}  dxc4 {[%clk 0:02:44]} 6. Bxc4 {[%clk 0:02:56]}  b5 {[%clk 0:02:45]} 7. Bd3 {[%clk 0:02:57]}  e6 {[%clk 0:02:44]} 8. a4 {[%clk 0:02:56]}  Bb7 {[%clk 0:02:40]} 9. Nf3 {[%clk 0:02:51]}  Nbd7 {[%clk 0:02:38]} 10. O-O {[%clk 0:02:49]}  Bd6 {[%clk 0:02:33]} 11. Qe2 {[%clk 0:02:29]}  O-O {[%clk 0:02:28]} 12. Rd1 {[%clk 0:02:27]}  Qe7 {[%clk 0:02:25]} 13. Ng5 {[%clk 0:02:11]}  e5 {[%clk 0:02:07]} 14. Nce4 {[%clk 0:02:06]}  Nxe4 {[%clk 0:01:59]} 15. Nxe4 {[%clk 0:02:00]}  exd4 {[%clk 0:01:53]} 16. Nxd6 {[%clk 0:01:57]}  Qxd6 {[%clk 0:01:52]} 17. exd4 {[%clk 0:01:56]}  Rfe8 {[%clk 0:01:48]} 18. Qc2 {[%clk 0:01:55]}  Nf6 {[%clk 0:01:38]} 19. Bg5 {[%clk 0:01:51]}  h6 {[%clk 0:01:37]} 20. Bh4 {[%clk 0:01:50]}  Nd5 {[%clk 0:01:31]} 21. Bg3 {[%clk 0:01:50]}  Qe7 {[%clk 0:01:18]} 22. Qc5 {[%clk 0:01:47]}  Qxc5 {[%clk 0:01:15]} 23. dxc5 {[%clk 0:01:48]}  Nb4 {[%clk 0:00:56]} 24. Bf1 {[%clk 0:01:35]}  Rad8 {[%clk 0:00:49]} 25. Bd6 {[%clk 0:01:32]}  Bc8 {[%clk 0:00:39]} 26. axb5 {[%clk 0:01:30]}  axb5 {[%clk 0:00:39]} 27. f3 {[%clk 0:01:19]}  Be6 {[%clk 0:00:38]} 28. Kf2 {[%clk 0:01:17]}  Ra8 {[%clk 0:00:35]} 29. g4 {[%clk 0:01:09]}  Nc2 {[%clk 0:00:31]} 30. Rac1 {[%clk 0:01:01]}  Nb4 {[%clk 0:00:27]} 31. Rd4 {[%clk 0:01:00]}  Nd5 {[%clk 0:00:14]} 32. Rd2 {[%clk 0:00:43]}  Ra2 {[%clk 0:00:12]} 33. Bd3 {[%clk 0:00:42]}  Nb4 {[%clk 0:00:09]} 34. Bb1 {[%clk 0:00:42]}  Raa8 {[%clk 0:00:09]} 35. h3 {[%clk 0:00:38]}  Ba2 {[%clk 0:00:08]} 36. Bf5 {[%clk 0:00:34]}  Be6 {[%clk 0:00:07]} 37. Be4 {[%clk 0:00:28]}  Bd5 {[%clk 0:00:08]} 38. Bf5 {[%clk 0:00:29]}  Be6 {[%clk 0:00:08]} 39. Be4 {[%clk 0:00:26]}  Bd5 {[%clk 0:00:08]} 40. Rd4 {[%clk 0:00:17]}  Bxe4 {[%clk 0:00:08]} 41. Rxb4 {[%clk 0:00:18]}  Bd5 {[%clk 0:00:07]} 42. Rd4 {[%clk 0:00:17]}  Ra2 {[%clk 0:00:07]} 43. Rd2 {[%clk 0:00:16]}  Rea8 {[%clk 0:00:06]} 44. Kg3 {[%clk 0:00:16]}  Ra1 {[%clk 0:00:06]} 45. Rc3 {[%clk 0:00:16]}  R1a2 {[%clk 0:00:05]} 46. Rxd5 {[%clk 0:00:14]}  cxd5 {[%clk 0:00:05]} 47. Rb3 {[%clk 0:00:15]}  R2a5 {[%clk 0:00:03]} 48. Kf4 {[%clk 0:00:15]}  f6 {[%clk 0:00:03]} 49. Ke3 {[%clk 0:00:14]}  Kf7 {[%clk 0:00:03]} 50. Kd4 {[%clk 0:00:15]}  Ke6 {[%clk 0:00:04]} 51. Re3+ {[%clk 0:00:15]}  Kf7 {[%clk 0:00:02]} 52. Re7+ {[%clk 0:00:14]}  Kg6 {[%clk 0:00:02]} 53. h4 {[%clk 0:00:13]}  h5 {[%clk 0:00:01]} 54. Kxd5 {[%clk 0:00:12]}  Ra4 {[%clk 0:00:01]} 55. Re4 {[%clk 0:00:10]} 1-0


[Site "https://www.chess.com"]

[Event "Titled Tuesday Blitz June 29 2021"]
[White "GMKrikor"]
[Black "Sanan_Sjugirov"]
[WhiteElo "2752"]
[BlackElo "2948"]
[Result "1-0"]
[Round "07"]
[TimeControl "180+1"]
[Date "2021.06.29"]
[WhiteClock "0:00:01"]
[BlackClock "0:00:04"]

1. e4 {[%clk 0:02:59]}  c5 {[%clk 0:02:59]} 2. Nf3 {[%clk 0:02:59]}  d6 {[%clk 0:03:00]} 3. d4 {[%clk 0:02:58]}  cxd4 {[%clk 0:03:01]} 4. Nxd4 {[%clk 0:02:59]}  Nf6 {[%clk 0:03:01]} 5. Nc3 {[%clk 0:02:59]}  a6 {[%clk 0:03:02]} 6. Be3 {[%clk 0:02:57]}  e5 {[%clk 0:03:02]} 7. Nb3 {[%clk 0:02:57]}  Be6 {[%clk 0:03:01]} 8. f3 {[%clk 0:02:55]}  h5 {[%clk 0:03:01]} 9. Qd2 {[%clk 0:02:51]}  Nbd7 {[%clk 0:03:01]} 10. Nd5 {[%clk 0:02:49]}  Bxd5 {[%clk 0:03:01]} 11. exd5 {[%clk 0:02:50]}  g6 {[%clk 0:03:00]} 12. O-O-O {[%clk 0:02:49]}  Bg7 {[%clk 0:02:50]} 13. Kb1 {[%clk 0:02:49]}  Qc7 {[%clk 0:02:41]} 14. c4 {[%clk 0:02:47]}  b6 {[%clk 0:02:40]} 15. Be2 {[%clk 0:02:40]}  Nc5 {[%clk 0:02:40]} 16. Qc2 {[%clk 0:02:29]}  a5 {[%clk 0:02:36]} 17. Nd2 {[%clk 0:02:29]}  a4 {[%clk 0:02:33]} 18. h3 {[%clk 0:02:28]}  h4 {[%clk 0:02:30]} 19. Bg5 {[%clk 0:02:26]}  Kf8 {[%clk 0:02:05]} 20. Rhf1 {[%clk 0:02:21]}  Nfd7 {[%clk 0:01:49]} 21. f4 {[%clk 0:02:15]}  exf4 {[%clk 0:01:47]} 22. Rxf4 {[%clk 0:02:11]}  Ne5 {[%clk 0:01:47]} 23. Rdf1 {[%clk 0:02:10]}  Kg8 {[%clk 0:01:44]} 24. Rxh4 {[%clk 0:01:41]}  Rxh4 {[%clk 0:01:42]} 25. Bxh4 {[%clk 0:01:41]}  a3 {[%clk 0:01:42]} 26. b3 {[%clk 0:01:37]}  Re8 {[%clk 0:01:32]} 27. Re1 {[%clk 0:01:25]}  Ned7 {[%clk 0:01:04]} 28. Bf3 {[%clk 0:01:05]}  Rxe1+ {[%clk 0:01:03]} 29. Bxe1 {[%clk 0:01:05]}  Qd8 {[%clk 0:01:03]} 30. Kc1 {[%clk 0:00:58]}  Qf6 {[%clk 0:01:00]} 31. Nb1 {[%clk 0:00:57]}  Qa1 {[%clk 0:00:53]} 32. Bb4 {[%clk 0:00:40]}  Bb2+ {[%clk 0:00:47]} 33. Kd1 {[%clk 0:00:36]}  Ne5 {[%clk 0:00:37]} 34. Be2 {[%clk 0:00:31]}  Ned7 {[%clk 0:00:21]} 35. h4 {[%clk 0:00:21]}  Bf6 {[%clk 0:00:17]} 36. h5 {[%clk 0:00:17]}  Qd4+ {[%clk 0:00:15]} 37. Qd2 {[%clk 0:00:11]}  Qe4 {[%clk 0:00:05]} 38. Nxa3 {[%clk 0:00:06]}  Qxg2 {[%clk 0:00:05]} 39. hxg6 {[%clk 0:00:03]}  Qg1+ {[%clk 0:00:04]} 40. Qe1 {[%clk 0:00:03]}  Qxg6 {[%clk 0:00:05]} 41. Nc2 {[%clk 0:00:03]}  Qe4 {[%clk 0:00:03]} 42. Qf1 {[%clk 0:00:02]}  Bg7 {[%clk 0:00:03]} 43. Bd2 {[%clk 0:00:02]}  Qe5 {[%clk 0:00:03]} 44. Qg2 {[%clk 0:00:02]}  Qa1+ {[%clk 0:00:04]} 45. Nxa1 {[%clk 0:00:01]} 1-0


[Site "https://www.chess.com"]

[Event "Titled Tuesday Blitz June 29 2021"]
[White "GigaQuparadze"]
[Black "Alexander_Donchenko"]
[WhiteElo "2971"]
[BlackElo "2854"]
[Result "1/2-1/2"]
[Round "07"]
[TimeControl "180+1"]
[Date "2021.06.29"]
[WhiteClock "0:01:35"]
[BlackClock "0:01:27"]

1. e4 {[%clk 0:03:00]}  c6 {[%clk 0:02:57]} 2. d4 {[%clk 0:03:00]}  d5 {[%clk 0:02:58]} 3. Nc3 {[%clk 0:03:00]}  dxe4 {[%clk 0:02:58]} 4. Nxe4 {[%clk 0:03:00]}  Bf5 {[%clk 0:02:58]} 5. Ng3 {[%clk 0:03:00]}  Bg6 {[%clk 0:02:59]} 6. h4 {[%clk 0:03:01]}  h6 {[%clk 0:02:59]} 7. Nf3 {[%clk 0:03:01]}  Nd7 {[%clk 0:02:59]} 8. h5 {[%clk 0:03:00]}  Bh7 {[%clk 0:03:00]} 9. Bd3 {[%clk 0:03:01]}  Bxd3 {[%clk 0:03:00]} 10. Qxd3 {[%clk 0:03:02]}  e6 {[%clk 0:03:01]} 11. Bf4 {[%clk 0:03:00]}  Qa5+ {[%clk 0:03:01]} 12. Bd2 {[%clk 0:03:00]}  Bb4 {[%clk 0:03:01]} 13. c3 {[%clk 0:03:00]}  Be7 {[%clk 0:03:01]} 14. c4 {[%clk 0:03:01]}  Qc7 {[%clk 0:03:01]} 15. d5 {[%clk 0:03:01]}  cxd5 {[%clk 0:03:00]} 16. cxd5 {[%clk 0:03:02]}  Qd6 {[%clk 0:02:56]} 17. Qb5 {[%clk 0:03:00]}  Qb6 {[%clk 0:02:45]} 18. Qxb6 {[%clk 0:02:48]}  Nxb6 {[%clk 0:02:46]} 19. dxe6 {[%clk 0:02:46]}  fxe6 {[%clk 0:02:47]} 20. Ne5 {[%clk 0:02:40]}  Nf6 {[%clk 0:02:39]} 21. Ng6 {[%clk 0:02:40]}  Rg8 {[%clk 0:02:38]} 22. O-O-O {[%clk 0:02:37]}  Bd6 {[%clk 0:02:31]} 23. Rhe1 {[%clk 0:02:28]}  Kf7 {[%clk 0:02:22]} 24. Bf4 {[%clk 0:02:27]}  Bxf4+ {[%clk 0:02:17]} 25. Nxf4 {[%clk 0:02:28]}  Rge8 {[%clk 0:02:16]} 26. Ng6 {[%clk 0:02:28]}  Rac8+ {[%clk 0:01:50]} 27. Kb1 {[%clk 0:02:27]}  Nc4 {[%clk 0:01:44]} 28. b3 {[%clk 0:02:22]}  Nxh5 {[%clk 0:01:37]} 29. Nxh5 {[%clk 0:02:12]}  Kxg6 {[%clk 0:01:36]} 30. Nf4+ {[%clk 0:01:38]}  Kf5 {[%clk 0:01:36]} 31. Nh5 {[%clk 0:01:38]}  Kg6 {[%clk 0:01:33]} 32. Nf4+ {[%clk 0:01:35]}  Kf5 {[%clk 0:01:33]} 33. Nh5 {[%clk 0:01:35]}  Kg6 {[%clk 0:01:27]} 1/2-1/2


[Site "https://www.chess.com"]

[Event "Titled Tuesday Blitz June 29 2021"]
[White "GrafLermontov"]
[Black "Iskusnyh"]
[WhiteElo "2499"]
[BlackElo "2633"]
[Result "0-1"]
[Round "07"]
[TimeControl "180+1"]
[Date "2021.06.29"]
[WhiteClock "0:00:09"]
[BlackClock "0:00:16"]

1. d4 {[%clk 0:03:00]}  d5 {[%clk 0:02:59]} 2. Bf4 {[%clk 0:02:58]}  Nf6 {[%clk 0:02:57]} 3. e3 {[%clk 0:02:58]}  c5 {[%clk 0:02:57]} 4. c3 {[%clk 0:02:57]}  Nc6 {[%clk 0:02:55]} 5. Nf3 {[%clk 0:02:54]}  Qb6 {[%clk 0:02:53]} 6. Qb3 {[%clk 0:02:52]}  c4 {[%clk 0:02:52]} 7. Qc2 {[%clk 0:02:51]}  Bf5 {[%clk 0:02:52]} 8. Qc1 {[%clk 0:02:52]}  e6 {[%clk 0:02:52]} 9. Nbd2 {[%clk 0:02:51]}  h6 {[%clk 0:02:52]} 10. Be2 {[%clk 0:02:49]}  Be7 {[%clk 0:02:51]} 11. O-O {[%clk 0:02:49]}  O-O {[%clk 0:02:52]} 12. h3 {[%clk 0:02:50]}  Rfc8 {[%clk 0:02:51]} 13. Ne5 {[%clk 0:02:46]}  Qd8 {[%clk 0:02:48]} 14. Bh2 {[%clk 0:02:43]}  b5 {[%clk 0:02:46]} 15. a3 {[%clk 0:02:42]}  a5 {[%clk 0:02:45]} 16. Nxc6 {[%clk 0:02:37]}  Rxc6 {[%clk 0:02:45]} 17. Bf3 {[%clk 0:02:38]}  b4 {[%clk 0:02:39]} 18. axb4 {[%clk 0:02:33]}  axb4 {[%clk 0:02:39]} 19. Re1 {[%clk 0:02:32]}  Rca6 {[%clk 0:02:04]} 20. Rxa6 {[%clk 0:02:31]}  Rxa6 {[%clk 0:02:05]} 21. Be5 {[%clk 0:02:15]}  Bd3 {[%clk 0:01:38]} 22. e4 {[%clk 0:01:46]}  bxc3 {[%clk 0:00:57]} 23. bxc3 {[%clk 0:01:45]}  Ra2 {[%clk 0:00:56]} 24. Bxf6 {[%clk 0:00:56]}  Bxf6 {[%clk 0:00:55]} 25. exd5 {[%clk 0:00:55]}  exd5 {[%clk 0:00:52]} 26. Nf1 {[%clk 0:00:53]}  Bh4 {[%clk 0:00:46]} 27. g3 {[%clk 0:00:35]}  Bg5 {[%clk 0:00:42]} 28. Qd1 {[%clk 0:00:35]}  Qa5 {[%clk 0:00:21]} 29. h4 {[%clk 0:00:32]}  Bf6 {[%clk 0:00:17]} 30. Ne3 {[%clk 0:00:19]}  Qxc3 {[%clk 0:00:17]} 31. Nxd5 {[%clk 0:00:19]}  Qxd4 {[%clk 0:00:17]} 32. Nxf6+ {[%clk 0:00:16]}  Qxf6 {[%clk 0:00:17]} 33. Re3 {[%clk 0:00:12]}  Ra1 {[%clk 0:00:15]} 34. Qxa1 {[%clk 0:00:08]}  Qxa1+ {[%clk 0:00:15]} 35. Kg2 {[%clk 0:00:08]}  Qf1+ {[%clk 0:00:15]} 36. Kh2 {[%clk 0:00:09]}  Qxf2+ {[%clk 0:00:16]} 0-1


[Site "https://www.chess.com"]

[Event "Titled Tuesday Blitz June 29 2021"]
[White "HackingKid98"]
[Black "queen_iryna"]
[WhiteElo "2549"]
[BlackElo "2377"]
[Result "1-0"]
[Round "07"]
[TimeControl "180+1"]
[Date "2021.06.29"]
[WhiteClock "0:00:28"]
[BlackClock "0:00:28"]

1. d4 {[%clk 0:03:00]}  d6 {[%clk 0:03:00]} 2. Nf3 {[%clk 0:03:00]}  g6 {[%clk 0:03:00]} 3. g3 {[%clk 0:03:01]}  Bg7 {[%clk 0:03:01]} 4. Bg2 {[%clk 0:03:01]}  Bd7 {[%clk 0:03:01]} 5. O-O {[%clk 0:03:02]}  Qc8 {[%clk 0:03:01]} 6. e4 {[%clk 0:03:01]}  Bh3 {[%clk 0:02:55]} 7. e5 {[%clk 0:02:55]}  h5 {[%clk 0:02:52]} 8. Bg5 {[%clk 0:02:54]}  h4 {[%clk 0:02:38]} 9. Bxh4 {[%clk 0:02:51]}  Nc6 {[%clk 0:02:29]} 10. Re1 {[%clk 0:02:40]}  Bxg2 {[%clk 0:02:28]} 11. Kxg2 {[%clk 0:02:39]}  Qg4 {[%clk 0:02:15]} 12. h3 {[%clk 0:02:17]}  Qd7 {[%clk 0:02:11]} 13. Nc3 {[%clk 0:01:38]}  O-O-O {[%clk 0:02:10]} 14. Qe2 {[%clk 0:01:27]}  g5 {[%clk 0:02:04]} 15. e6 {[%clk 0:01:07]}  fxe6 {[%clk 0:02:04]} 16. Bxg5 {[%clk 0:01:01]}  e5 {[%clk 0:01:50]} 17. h4 {[%clk 0:01:00]}  Nxd4 {[%clk 0:01:31]} 18. Nxd4 {[%clk 0:00:54]}  exd4 {[%clk 0:01:32]} 19. Nd5 {[%clk 0:00:53]}  Nf6 {[%clk 0:01:14]} 20. Nxe7+ {[%clk 0:00:38]}  Kb8 {[%clk 0:01:13]} 21. Qe6 {[%clk 0:00:37]}  Qxe6 {[%clk 0:00:39]} 22. Rxe6 {[%clk 0:00:38]}  Ng4 {[%clk 0:00:34]} 23. Rae1 {[%clk 0:00:32]}  Be5 {[%clk 0:00:30]} 24. Ng6 {[%clk 0:00:30]}  Rhg8 {[%clk 0:00:28]} 25. Bxd8 {[%clk 0:00:28]} 1-0


[Site "https://www.chess.com"]

[Event "Titled Tuesday Blitz June 29 2021"]
[White "Harry_Rakkel"]
[Black "MMKZH22"]
[WhiteElo "2565"]
[BlackElo "2397"]
[Result "0-1"]
[Round "07"]
[TimeControl "180+1"]
[Date "2021.06.29"]
[WhiteClock "0:00:10"]
[BlackClock "0:00:10"]

1. d4 {[%clk 0:03:00]}  d5 {[%clk 0:02:59]} 2. c4 {[%clk 0:02:59]}  c6 {[%clk 0:02:59]} 3. Nc3 {[%clk 0:02:58]}  Nf6 {[%clk 0:03:00]} 4. Nf3 {[%clk 0:02:57]}  dxc4 {[%clk 0:02:58]} 5. a4 {[%clk 0:02:56]}  Bf5 {[%clk 0:02:58]} 6. Ne5 {[%clk 0:02:54]}  Nbd7 {[%clk 0:02:57]} 7. Nxc4 {[%clk 0:02:53]}  Qc7 {[%clk 0:02:58]} 8. f3 {[%clk 0:02:35]}  e5 {[%clk 0:02:56]} 9. e4 {[%clk 0:02:34]}  Be6 {[%clk 0:02:54]} 10. Nxe5 {[%clk 0:02:12]}  Nxe5 {[%clk 0:02:54]} 11. dxe5 {[%clk 0:02:12]}  Qxe5 {[%clk 0:02:54]} 12. Be3 {[%clk 0:02:11]}  Rd8 {[%clk 0:02:52]} 13. Qc2 {[%clk 0:02:03]}  Nh5 {[%clk 0:02:38]} 14. Qf2 {[%clk 0:01:53]}  Bb4 {[%clk 0:02:13]} 15. Rc1 {[%clk 0:01:49]}  Nf4 {[%clk 0:02:02]} 16. Bxa7 {[%clk 0:01:13]}  O-O {[%clk 0:01:58]} 17. Be3 {[%clk 0:01:11]}  Bb3 {[%clk 0:01:47]} 18. Qg3 {[%clk 0:00:54]}  Nd3+ {[%clk 0:01:07]} 19. Bxd3 {[%clk 0:00:52]}  Qxg3+ {[%clk 0:01:06]} 20. hxg3 {[%clk 0:00:52]}  Rxd3 {[%clk 0:01:06]} 21. Kf2 {[%clk 0:00:41]}  Rfd8 {[%clk 0:00:58]} 22. Ne2 {[%clk 0:00:38]}  Bxa4 {[%clk 0:00:16]} 23. Ra1 {[%clk 0:00:14]}  Bb5 {[%clk 0:00:13]} 24. Nf4 {[%clk 0:00:10]}  Rxe3 {[%clk 0:00:10]} 25. Kxe3 {[%clk 0:00:10]}  Bc5# {[%clk 0:00:10]} 0-1


[Site "https://www.chess.com"]